fUST/lending_fUST_20241220
["ID","MTS","AMOUNT","RATE_DAILY","PERIOD"]
[346089309,1734697849684,-500.0,0.00024109,6]
[346089310,1734697849694,-1107.46,0.00024109,6]
[346089311,1734697849703,-500.0,0.00024109,6]
[346089312,1734697849713,-530.11,0.00024109,6]
[346089313,1734697849722,-1410.83,0.00024109,6]
[346089314,1734697849731,-467.87082001,0.00024109,6]
[346089315,1734697849740,-527.67,0.00024109,6]
[346089316,1734697849750,-328.23222556,0.00024109,6]
[346089317,1734697849759,-500.0,0.00024109,6]
[346089318,1734697849768,-9989.69,0.00024109,6]
[346089319,1734697849778,-500.0,0.00024109,6]
[346089320,1734697849787,-246.0,0.00024164,2]
[346089321,1734697849797,-1500.0,0.00024252,2]
[346089322,1734697849806,-543.26469851,0.00024287,2]
[346089323,1734697849815,-44679.42369537,0.000243,2]
[346089324,1734697849829,-500.0,0.00024383,6]
[346089325,1734697849838,-552.87,0.00024383,6]
[346089326,1734697849848,-500.0,0.00024383,6]
[346089327,1734697849858,-598.59,0.00024383,6]
[346089328,1734697849867,-500.0,0.00024383,6]
[346089329,1734697849877,-500.0,0.00024383,6]
[346089330,1734697849886,-500.0,0.00024383,6]
[346089331,1734697849896,-500.0,0.00024383,6]
[346089332,1734697849905,-683.33,0.00024383,6]
[346089333,1734697849915,-500.0,0.00024383,6]
[346089334,1734697849925,-1000.0,0.00024383,2]
[346089335,1734697849935,-533.26,0.00024383,6]
[346089336,1734697849944,-500.0,0.00024383,6]
[346089337,1734697849954,-500.0,0.00024383,6]
[346089338,1734697849964,-500.0,0.00024383,6]
[346089339,1734697849974,-500.0,0.00024383,6]
[346089340,1734697849986,-500.0,0.00024383,6]
[346089341,1734697849996,-500.0,0.00024383,6]
[346089342,1734697850005,-1901.23,0.00024383,6]
[346089343,1734697850014,-500.0,0.00024383,6]
[346089344,1734697850025,-572.28,0.00024383,6]
[346089345,1734697850035,-509.77,0.00024383,6]
[346089346,1734697850044,-745.59,0.00024383,6]
[346089347,1734697850055,-500.0,0.00024383,6]
[346089348,1734697850064,-631.75,0.00024383,6]
[346089349,1734697850077,-2598.63,0.00024383,6]
[346089350,1734697850087,-5387.38,0.00024383,6]
[346089351,1734697850096,-595.1,0.00024383,6]
[346089352,1734697850105,-3944.95,0.00024383,6]
[346089353,1734697850114,-2330.66,0.00024383,6]
[346089354,1734697850123,-500.0,0.00024383,6]
[346089355,1734697850133,-1274.43,0.00024383,6]
[346089356,1734697850143,-500.0,0.00024383,6]
[346089357,1734697850152,-614.45,0.00024383,6]
[346089358,1734697850162,-500.0,0.00024383,6]
[346089359,1734697850171,-796.85,0.00024383,2]
[346089360,1734697850181,-500.0,0.00024383,6]
[346089361,1734697850191,-500.0,0.00024383,6]
[346089362,1734697850200,-500.0,0.00024383,6]
[346089363,1734697850209,-500.0,0.00024383,6]
[346089364,1734697850219,-500.0,0.00024383,6]
[346089365,1734697850228,-769.76,0.00024383,6]
[346089366,1734697850237,-500.0,0.00024383,6]
[346089367,1734697850247,-629.1,0.00024383,6]
[346089368,1734697850257,-1059.62,0.00024383,6]
[346089369,1734697850266,-500.0,0.00024383,6]
[346089370,1734697850275,-500.0,0.00024383,6]
[346089371,1734697850285,-1107.46,0.00024383,6]
[346089372,1734697850295,-500.0,0.00024383,6]
[346089373,1734697850304,-530.11,0.00024383,6]
[346089374,1734697850314,-1410.83,0.00024383,6]
[346089375,1734697850327,-527.67,0.00024383,6]
[346089376,1734697850336,-500.0,0.00024383,6]
[346089377,1734697850346,-9989.69,0.00024383,6]
[346089378,1734697850355,-500.0,0.00024383,6]
[346089379,1734697850365,-8949.04235225,0.00024457,2]
[346089380,1734697850374,-500.0,0.00024657,6]
[346089381,1734697850384,-552.87,0.00024657,6]
[346089382,1734697850394,-500.0,0.00024657,6]
[346089383,1734697850403,-598.59,0.00024657,6]
[346089384,1734697850413,-500.0,0.00024657,6]
[346089385,1734697850423,-500.0,0.00024657,6]
[346089386,1734697850433,-500.0,0.00024657,6]
[346089387,1734697850443,-500.0,0.00024657,6]
[346089388,1734697850452,-683.33,0.00024657,6]
[346089389,1734697850462,-500.0,0.00024657,6]
[346089390,1734697850472,-1000.0,0.00024657,2]
[346089391,1734697850482,-533.26,0.00024657,6]
[346089392,1734697850491,-500.0,0.00024657,6]
[346089393,1734697850501,-977.06,0.00024657,11]
[346089394,1734697850511,-500.0,0.00024657,6]
[346089395,1734697850521,-519.58123637,0.00024657,6]
[346089396,1734697850530,-500.0,0.00024657,6]
[346089397,1734697850540,-500.0,0.00024657,6]
[346089398,1734697850550,-350.0,0.00024657,2]
[346089399,1734697850560,-350.0,0.00024657,2]
[346089400,1734697850571,-350.0,0.00024657,2]
[346089401,1734697850580,-350.0,0.00024657,2]
[346089402,1734697850590,-350.0,0.00024657,2]
[346089403,1734697850600,-350.0,0.00024657,2]
[346089404,1734697850610,-350.0,0.00024657,2]
[346089405,1734697850620,-350.0,0.00024657,2]
[346089406,1734697850630,-350.0,0.00024657,2]
[346089407,1734697850640,-350.0,0.00024657,2]
[346089408,1734697850650,-350.0,0.00024657,2]
[346089409,1734697850660,-500.0,0.00024657,6]
[346089410,1734697850670,-1901.23,0.00024657,6]
[346089411,1734697850680,-500.0,0.00024657,6]
[346089412,1734697850690,-572.28,0.00024657,6]
[346089413,1734697850699,-509.77,0.00024657,6]
[346089414,1734697850710,-745.59,0.00024657,6]
[346089415,1734697850719,-500.0,0.00024657,6]
[346089416,1734697850730,-631.75,0.00024657,6]
[346089417,1734697850739,-2598.63,0.00024657,6]
[346089418,1734697850749,-5387.38,0.00024657,6]
[346089419,1734697850759,-595.1,0.00024657,6]
[346089420,1734697850769,-3944.95,0.00024657,6]
[346089421,1734697850779,-2330.66,0.00024657,6]
[346089422,1734697850788,-500.0,0.00024657,6]
[346089423,1734697850798,-1274.43,0.00024657,6]
[346089424,1734697850807,-500.0,0.00024657,6]
[346089425,1734697850816,-614.45,0.00024657,6]
[346089426,1734697850829,-500.0,0.00024657,6]
[346089427,1734697850839,-796.85,0.00024657,2]
[346089428,1734697850848,-500.0,0.00024657,6]
[346089429,1734697850857,-500.0,0.00024657,6]
[346089430,1734697850867,-500.0,0.00024657,6]
[346089431,1734697850877,-1979.34,0.00024657,6]
[346089432,1734697850886,-500.0,0.00024657,6]
[346089433,1734697850897,-500.0,0.00024657,6]
[346089434,1734697850907,-769.76,0.00024657,6]
[346089435,1734697850917,-500.0,0.00024657,6]
[346089436,1734697850927,-629.1,0.00024657,6]
[346089437,1734697850936,-1059.62,0.00024657,6]
[346089438,1734697850945,-500.0,0.00024657,6]
[346089439,1734697850955,-500.0,0.00024657,6]
[346089440,1734697850964,-1107.46,0.00024657,6]
[346089441,1734697850974,-500.0,0.00024657,6]
[346089442,1734697850984,-530.11,0.00024657,6]
[346089443,1734697850997,-1410.83,0.00024657,6]
[346089444,1734697851008,-527.67,0.00024657,6]
[346089445,1734697851017,-500.0,0.00024657,6]
[346089446,1734697851029,-9989.69,0.00024657,6]
[346089447,1734697851038,-500.0,0.00024657,6]
[346089448,1734697851047,-380.0,0.00024658,2]
[346089449,1734697851057,-506.45024159,0.00024699,2]
[346089450,1734697851068,-543.26469851,0.00024699,2]
[346089451,1734697851078,-2000.0,0.000247,2]
[346089452,1734697851087,-2895.31,0.000247,14]
[346089453,1734697851098,-415.67685506,0.000247,2]
[346089454,1734697851108,-423.0,0.0002472,14]
[346089455,1734697851117,-503.65822451,0.00024773,2]
[346089456,1734697851126,-503.93264086,0.00024773,2]
[346089457,1734697851136,-500.0,0.00024773,2]
[346089458,1734697851146,-151.0,0.00024799,7]
[346089459,1734697851156,-151.0,0.00024799,7]
[346089460,1734697851165,-151.0,0.00024799,7]
[346089461,1734697851174,-151.0,0.00024799,7]
[346089462,1734697851184,-151.0,0.00024799,7]
[346089463,1734697851194,-189.256618,0.00024799,7]
[346089464,1734697851203,-151.0,0.00024799,7]
[346089465,1734697851212,-151.0,0.00024799,7]
[346089466,1734697851222,-151.0,0.00024799,7]
[346089467,1734697851231,-151.0,0.00024799,7]
[346089468,1734697851241,-151.0,0.00024799,7]
[346089469,1734697851251,-151.0,0.00024799,7]
[346089470,1734697851261,-151.0,0.00024799,7]
[346089471,1734697851270,-205.957086,0.00024799,7]
[346089472,1734697851280,-151.0,0.00024799,7]
[346089473,1734697851289,-151.0,0.00024799,7]
[346089474,1734697851298,-151.0,0.00024799,7]
[346089475,1734697851307,-151.0,0.00024799,7]
[346089476,1734697851355,-151.0,0.00024799,7]
[346089477,1734697851364,-151.0,0.00024799,7]
[346089478,1734697851375,-151.0,0.00024799,7]
[346089479,1734697851384,-250.452944,0.00024799,7]
[346089480,1734697851394,-151.0,0.00024799,7]
[346089481,1734697851402,-151.0,0.00024799,7]
[346089482,1734697851412,-151.0,0.00024799,7]
[346089483,1734697851421,-151.0,0.00024799,7]
[346089484,1734697851431,-151.0,0.00024799,7]
[346089485,1734697851440,-151.0,0.00024799,7]
[346089486,1734697851450,-151.0,0.00024799,7]
[346089487,1734697851459,-151.0,0.00024799,7]
[346089488,1734697851469,-151.0,0.00024799,7]
[346089489,1734697851478,-151.0,0.00024799,7]
[346089490,1734697851488,-151.0,0.00024799,7]
[346089491,1734697851498,-281.662446,0.00024799,7]
[346089492,1734697851507,-151.0,0.00024799,7]
[346089493,1734697851517,-151.0,0.00024799,7]
[346089494,1734697851526,-151.0,0.00024799,7]
[346089495,1734697851536,-151.0,0.00024799,7]
[346089496,1734697851546,-151.0,0.00024799,7]
[346089497,1734697851555,-151.0,0.00024799,7]
[346089498,1734697851565,-151.0,0.00024799,7]
[346089499,1734697851580,-151.0,0.00024799,7]
[346089500,1734697851594,-151.0,0.00024799,7]
[346089501,1734697851603,-151.0,0.00024799,7]
[346089502,1734697851612,-151.0,0.00024799,7]
[346089503,1734697851621,-151.0,0.00024799,7]
[346089504,1734697851631,-151.0,0.00024799,7]
[346089505,1734697851640,-151.0,0.00024799,7]
[346089506,1734697851649,-268.513676,0.00024799,7]
[346089507,1734697851658,-471.602199,0.00024799,7]
[346089508,1734697851668,-471.602199,0.00024799,7]
[346089509,1734697851677,-471.602199,0.00024799,7]
[346089510,1734697851687,-471.602199,0.00024799,7]
[346089511,1734697851696,-471.602199,0.00024799,7]
[346089512,1734697851705,-471.602199,0.00024799,7]
[346089513,1734697851715,-471.602199,0.00024799,7]
[346089514,1734697851724,-471.602199,0.00024799,7]
[346089515,1734697851733,-471.602199,0.00024799,7]
[346089516,1734697851742,-471.602199,0.00024799,7]
[346089517,1734697851752,-471.602199,0.00024799,7]
[346089518,1734697851761,-471.602199,0.00024799,7]
[346089519,1734697851771,-471.602199,0.00024799,7]
[346089520,1734697851781,-471.602199,0.00024799,7]
[346089521,1734697851790,-471.602199,0.00024799,7]
[346089522,1734697851799,-471.602199,0.00024799,7]
[346089523,1734697851809,-471.602199,0.00024799,7]
[346089524,1734697851818,-471.602199,0.00024799,7]
[346089525,1734697851827,-471.602199,0.00024799,7]
[346089526,1734697851837,-471.602193,0.00024799,7]
[346089527,1734697851846,-151.0,0.00024799,7]
[346089528,1734697851856,-151.0,0.00024799,7]
[346089529,1734697851865,-151.0,0.00024799,7]
[346089530,1734697851875,-151.0,0.00024799,7]
[346089531,1734697851885,-151.0,0.00024799,7]
[346089532,1734697851894,-151.0,0.00024799,7]
[346089533,1734697851903,-151.0,0.00024799,7]
[346089534,1734697851913,-151.0,0.00024799,7]
[346089535,1734697851923,-208.411036,0.00024799,7]
[346089536,1734697851932,-74530.46580443,0.00024799,2]
[346089537,1734697851942,-2926.80155388,0.00024799,2]
[346089538,1734697851952,-158150.18069613,0.000248,10]
[346089539,1734697851962,-297800.7970897,0.000248,10]
[346089540,1734697851972,-358010.7224466,0.000248,10]
[346089541,1734697851984,-4002.02134566,0.000248,2]
[346089542,1734697851994,-366932.84113649,0.000248,10]
[346089543,1734697852003,-421467.98489557,0.000248,10]
[346089544,1734697852013,-269.39518544,0.000248,20]
[346089545,1734697852024,-2676794.05474983,0.000248,10]
[346089546,1734697852034,-336388.76220761,0.000248,10]
[346089547,1734697852044,-225261.33595029,0.000248,10]
[346089548,1734697852063,-17160.84417703,0.000248,10]
[346089549,1734697852239,-4946.95564181,0.000248,10]
[346089550,1734697852251,-1873.03027884,0.000248,10]
[346089551,1734697852271,-15705.96,0.000248,10]
[346089590,1734698504154,114273.0,0.00025,30]
[346089592,1734698593696,361.294867,0.00013973,2]
[346089628,1734698829086,-372.01867181,0.0001979,2]
[346089629,1734698835091,-500.02667199,0.0001979,2]
[346089630,1734698838126,-225.28326755,0.0001979,2]
[346089636,1734698947098,-328.14614,0.0001979,2]
[346089637,1734698954109,-736.52390658,0.0001979,2]
[346089638,1734698955110,-323.7633838,0.0001999,2]
[346089641,1734698967658,166.2366162,0.00020134,2]
[346089642,1734698971118,-548.85196035,0.00020134,2]
[346089643,1734698971145,-1809.85495875,0.00020134,2]
[346089712,1734699032878,-169.198961,0.00020338,2]
[346089714,1734699032888,-154.52011209,0.00020439,2]
[346089720,1734699032937,-14.67884891,0.00020439,2]
[346089722,1734699032948,-5164.75756255,0.00020446,2]
[346089723,1734699032962,-361.294867,0.00020447,2]
[346089724,1734699032973,-259.865816,0.00020938,2]
[346089726,1734699032983,-216.505,0.00020958,2]
[346089728,1734699032993,-300.0,0.00020958,2]
[346089730,1734699033003,-300.0,0.00020958,2]
[346089733,1734699033012,-24900.0,0.00020959,2]
[346089736,1734699033022,-339.5404366,0.00021816,2]
[346089739,1734699033032,-500.0,0.00021917,6]
[346089741,1734699033045,-500.0,0.00021917,6]
[346089743,1734699033056,-500.0,0.00021917,6]
[346089745,1734699033066,-500.0,0.00021917,6]
[346089747,1734699033077,-500.0,0.00021917,6]
[346089749,1734699033086,-500.0,0.00021917,6]
[346089751,1734699033096,-500.0,0.00021917,6]
[346089754,1734699033106,-500.0,0.00021917,6]
[346089756,1734699033116,-500.0,0.00021917,6]
[346089758,1734699033126,-500.0,0.00021917,6]
[346089760,1734699033136,-500.0,0.00021917,6]
[346089762,1734699033146,-500.0,0.00021917,6]
[346089763,1734699033156,-500.0,0.00021917,6]
[346089765,1734699033165,-500.0,0.00021917,6]
[346089766,1734699033176,-500.0,0.00021917,6]
[346089767,1734699033185,-500.0,0.00021917,6]
[346089768,1734699033195,-150.0,0.00021917,6]
[346089769,1734699033207,-442.74705885,0.00021917,6]
[346089770,1734699033217,-500.0,0.00021917,6]
[346089771,1734699033227,-500.0,0.00021917,6]
[346089772,1734699033236,-500.0,0.00021917,6]
[346089773,1734699033247,-500.0,0.00021917,6]
[346089774,1734699033257,-500.0,0.00021917,6]
[346089775,1734699033267,-500.0,0.00021917,6]
[346089776,1734699033277,-500.0,0.00021917,6]
[346089777,1734699033287,-500.0,0.00021917,6]
[346089778,1734699033296,-921.29,0.00021917,7]
[346089779,1734699033305,-500.0,0.00021917,6]
[346089780,1734699033315,-500.0,0.00021917,6]
[346089781,1734699033324,-500.0,0.00021917,6]
[346089782,1734699033333,-500.0,0.00021917,6]
[346089784,1734699033343,-500.0,0.00021917,6]
[346089785,1734699033352,-500.0,0.00021917,6]
[346089799,1734699033573,-505.23155099,0.00021917,6]
[346089801,1734699033583,-500.0,0.00021917,6]
[346089802,1734699033592,-500.0,0.00021917,6]
[346089803,1734699033602,-500.0,0.00021917,6]
[346089805,1734699033611,-500.0,0.00021917,6]
[346089807,1734699033622,-500.0,0.00021917,6]
[346089808,1734699033631,-500.0,0.00021917,6]
[346089809,1734699033641,-500.0,0.00021917,6]
[346089811,1734699033650,-500.0,0.00021917,6]
[346089813,1734699033660,-500.0,0.00021917,6]
[346089814,1734699033670,-500.0,0.00021917,6]
[346089815,1734699033679,-500.0,0.00021917,6]
[346089816,1734699033689,-500.0,0.00021917,6]
[346089817,1734699033699,-500.0,0.00021917,6]
[346089818,1734699033712,-500.0,0.00021917,6]
[346089819,1734699033722,-500.0,0.00021917,6]
[346089820,1734699033731,-500.0,0.00021917,6]
[346089821,1734699033741,-500.0,0.00021917,6]
[346089822,1734699033752,-500.0,0.00021917,6]
[346089823,1734699033762,-500.0,0.00021917,6]
[346089824,1734699033771,-500.0,0.00021917,6]
[346089825,1734699033781,-500.0,0.00021917,6]
[346089826,1734699033790,-500.0,0.00021917,6]
[346089827,1734699033800,-500.0,0.00021917,6]
[346089828,1734699033809,-500.0,0.00021917,6]
[346089829,1734699033819,-500.0,0.00021917,6]
[346089830,1734699033828,-500.0,0.00021917,6]
[346089831,1734699033838,-500.0,0.00021917,6]
[346089832,1734699033849,-138.63366433,0.00021917,6]
[346089833,1734699033969,-361.36633567,0.00021917,6]
[346089834,1734699033979,-500.0,0.00021917,6]
[346089835,1734699033988,-418.35050593,0.00021917,6]
[346089836,1734699034005,-81.64949407,0.00021917,6]
[346089837,1734699034015,-500.0,0.00021917,6]
[346089838,1734699034025,-500.0,0.00021917,6]
[346089839,1734699034035,-500.0,0.00021917,6]
[346089840,1734699034045,-290.76629609,0.00021917,6]
[346089866,1734699039811,-500.0,0.00021916,2]
[346089867,1734699039822,-440.604612,0.00021916,2]
[346089868,1734699039831,-500.0,0.00021916,2]
[346089869,1734699039841,-523.13046948,0.00021916,2]
[346089870,1734699039852,-500.0,0.00021916,2]
[346089871,1734699039862,-500.0,0.00021916,2]
[346089873,1734699039872,-500.0,0.00021916,2]
[346089875,1734699039881,-500.0,0.00021916,2]
[346089877,1734699039891,-500.0,0.00021916,2]
[346089879,1734699039902,-500.0,0.00021916,2]
[346089882,1734699039911,-500.0,0.00021916,2]
[346089884,1734699039921,-500.0,0.00021916,2]
[346089886,1734699039931,-291.19153926,0.00021916,2]
[346089888,1734699039941,-500.0,0.00021916,2]
[346089890,1734699039951,-237.98699534,0.00021917,6]
[346089892,1734699039963,-500.0,0.00021917,6]
[346089894,1734699039973,-230.37354292,0.00021917,6]
[346089896,1734699039983,-500.0,0.00021917,6]
[346089898,1734699039994,-500.0,0.00021917,6]
[346089900,1734699040004,-500.0,0.00021917,6]
[346089902,1734699040013,-500.0,0.00021917,6]
[346089904,1734699040022,-500.0,0.00021917,6]
[346089906,1734699040032,-500.0,0.00021917,6]
[346089908,1734699040042,-537.72,0.00021917,6]
[346089910,1734699040052,-500.0,0.00021917,6]
[346089912,1734699040062,-500.0,0.00021917,6]
[346089914,1734699040071,-500.0,0.00021917,6]
[346089916,1734699040081,-500.0,0.00021917,6]
[346089917,1734699040091,-500.0,0.00021917,6]
[346089918,1734699040100,-168.0,0.00021917,6]
[346089920,1734699040110,-500.0,0.00021917,6]
[346089922,1734699040119,-500.0,0.00021917,6]
[346089924,1734699040129,-500.0,0.00021917,6]
[346089927,1734699040139,-500.0,0.00021917,6]
[346089929,1734699040148,-500.0,0.00021917,6]
[346089931,1734699040158,-500.0,0.00021917,6]
[346089934,1734699040167,-500.0,0.00021917,6]
[346089936,1734699040177,-500.0,0.00021917,6]
[346089939,1734699040186,-500.0,0.00021917,6]
[346089941,1734699040196,-500.0,0.00021917,6]
[346089943,1734699040205,-500.0,0.00021917,6]
[346089945,1734699040217,-500.0,0.00021917,6]
[346089948,1734699040226,-500.0,0.00021917,6]
[346089950,1734699040236,-500.0,0.00021917,6]
[346089952,1734699040246,-500.0,0.00021917,6]
[346089955,1734699040256,-500.0,0.00021917,6]
[346089957,1734699040266,-500.0,0.00021917,6]
[346089959,1734699040275,-630.43625434,0.00021917,6]
[346089961,1734699040285,-500.0,0.00021917,6]
[346089963,1734699040295,-500.0,0.00021917,6]
[346089964,1734699040305,-500.0,0.00021917,6]
[346089967,1734699040315,-500.0,0.00021917,6]
[346089969,1734699040325,-500.0,0.00021917,6]
[346089971,1734699040334,-500.0,0.00021917,6]
[346089974,1734699040344,-500.0,0.00021917,6]
[346089976,1734699040353,-500.0,0.00021917,6]
[346089978,1734699040366,-500.0,0.00021917,6]
[346089980,1734699040376,-500.0,0.00021917,6]
[346089981,1734699040385,-500.0,0.00021917,6]
[346089983,1734699040395,-500.0,0.00021917,6]
[346089985,1734699040406,-500.0,0.00021917,6]
[346089987,1734699040416,-500.0,0.00021917,6]
[346089989,1734699040425,-5411.08,0.00021917,6]
[346089990,1734699040435,-500.0,0.00021917,6]
[346089991,1734699040445,-500.0,0.00021917,6]
[346089992,1734699040455,-500.0,0.00021917,6]
[346089993,1734699040467,-500.0,0.00021917,6]
[346089994,1734699040477,-503.52050645,0.00021917,6]
[346089995,1734699040487,-500.0,0.00021917,6]
[346089996,1734699040496,-500.0,0.00021917,6]
[346089997,1734699040506,-500.0,0.00021917,6]
[346089998,1734699040515,-500.0,0.00021917,6]
[346089999,1734699040525,-500.0,0.00021917,6]
[346090000,1734699040534,-500.0,0.00021917,6]
[346090001,1734699040544,-500.0,0.00021917,6]
[346090002,1734699040554,-500.0,0.00021917,6]
[346090003,1734699040563,-500.0,0.00021917,6]
[346090004,1734699040573,-500.0,0.00021917,6]
[346090005,1734699040582,-500.0,0.00021917,6]
[346090006,1734699040592,-500.0,0.00021917,6]
[346090007,1734699040601,-500.0,0.00021917,6]
[346090008,1734699040610,-500.0,0.00021917,6]
[346090009,1734699040620,-500.0,0.00021917,6]
[346090010,1734699040629,-522.79355695,0.00021917,6]
[346090011,1734699040639,-500.0,0.00021917,6]
[346090012,1734699040648,-500.0,0.00021917,6]
[346090013,1734699040658,-1976.53,0.00021917,6]
[346090014,1734699040667,-500.0,0.00021917,6]
[346090015,1734699040677,-500.0,0.00021917,6]
[346090017,1734699040686,-500.0,0.00021917,6]
[346090019,1734699040695,-500.0,0.00021917,6]
[346090020,1734699040704,-500.0,0.00021917,6]
[346090021,1734699040716,-500.0,0.00021917,6]
[346090022,1734699040726,-500.0,0.00021917,6]
[346090023,1734699040736,-500.0,0.00021917,6]
[346090024,1734699040745,-500.0,0.00021917,6]
[346090025,1734699040755,-500.0,0.00021917,6]
[346090026,1734699040764,-500.0,0.00021917,6]
[346090027,1734699040774,-500.0,0.00021917,6]
[346090028,1734699040783,-3720.12,0.00021917,6]
[346090029,1734699040793,-2821.13,0.00021917,6]
[346090030,1734699040802,-541.42,0.00021917,6]
[346090031,1734699040811,-500.0,0.00021917,6]
[346090032,1734699040821,-500.0,0.00021917,6]
[346090033,1734699040831,-500.0,0.00021917,6]
[346090034,1734699040841,-188.70181191,0.00021917,6]
[346090035,1734699040850,-500.0,0.00021917,6]
[346090036,1734699040860,-500.0,0.00021917,6]
[346090037,1734699040870,-500.0,0.00021917,6]
[346090038,1734699040880,-500.0,0.00021917,6]
[346090039,1734699040889,-500.0,0.00021917,6]
[346090040,1734699040899,-1788.87,0.00021917,6]
[346090041,1734699040909,-500.0,0.00021917,6]
[346090042,1734699040919,-500.0,0.00021917,6]
[346090043,1734699040928,-500.0,0.00021917,6]
[346090044,1734699040938,-500.0,0.00021917,6]
[346090045,1734699040948,-500.0,0.00021917,6]
[346090046,1734699040957,-911.38,0.00021917,6]
[346090047,1734699040968,-500.0,0.00021917,6]
[346090048,1734699040977,-500.0,0.00021917,6]
[346090049,1734699040987,-500.0,0.00021917,6]
[346090050,1734699040996,-500.0,0.00021917,6]
[346090051,1734699041005,-619.12505752,0.00021917,6]
[346090052,1734699041015,-500.0,0.00021917,6]
[346090053,1734699041024,-500.0,0.00021917,6]
[346090054,1734699041033,-500.0,0.00021917,6]
[346090055,1734699041043,-500.0,0.00021917,6]
[346090056,1734699041052,-500.0,0.00021917,6]
[346090057,1734699041062,-500.0,0.00021917,6]
[346090058,1734699041071,-500.0,0.00021917,6]
[346090059,1734699041080,-500.0,0.00021917,6]
[346090060,1734699041089,-500.0,0.00021917,6]
[346090062,1734699041099,-500.0,0.00021917,6]
[346090063,1734699041108,-500.0,0.00021917,6]
[346090064,1734699041118,-500.0,0.00021917,6]
[346090065,1734699041127,-159.56356869,0.00021917,6]
[346090066,1734699041137,-500.0,0.00021917,6]
[346090067,1734699041147,-500.0,0.00021917,6]
[346090068,1734699041156,-500.0,0.00021917,6]
[346090069,1734699041166,-500.0,0.00021917,6]
[346090070,1734699041178,-500.0,0.00021917,6]
[346090071,1734699041187,-606.08,0.00021917,2]
[346090072,1734699041197,-500.0,0.00021917,6]
[346090073,1734699041207,-500.0,0.00021917,6]
[346090074,1734699041224,-500.0,0.00021917,6]
[346090075,1734699041234,-500.0,0.00021917,6]
[346090076,1734699041245,-233.85249712,0.00021917,6]
[346090077,1734699041255,-500.0,0.00021917,6]
[346090078,1734699041266,-500.0,0.00021917,6]
[346090079,1734699041276,-500.0,0.00021917,6]
[346090080,1734699041286,-500.0,0.00021917,6]
[346090081,1734699041296,-500.0,0.00021917,6]
[346090082,1734699041306,-500.0,0.00021917,6]
[346090083,1734699041316,-500.0,0.00021917,6]
[346090084,1734699041325,-500.0,0.00021917,6]
[346090085,1734699041335,-1842.73,0.00021917,2]
[346090086,1734699041345,-500.0,0.00021917,6]
[346090087,1734699041354,-500.0,0.00021917,6]
[346090088,1734699041364,-500.0,0.00021917,6]
[346090089,1734699041376,-500.0,0.00021917,6]
[346090090,1734699041386,-500.0,0.00021917,6]
[346090091,1734699041396,-500.0,0.00021917,6]
[346090092,1734699041405,-500.0,0.00021917,6]
[346090093,1734699041415,-349.39789098,0.00021917,6]
[346090094,1734699041431,-717.29210902,0.00021917,6]